Workbook

Sheet DSM 2019 Premium Calculator
A1: 2019 PREMIUM CALCULATOR FOR WELLNESS INCENTIVE CREDIT
A2: Visit www.Brighterliving.DSM.com to confirm your incentive status (To see when you hit the “Level 3: Premium Credit” milestones, go to “Rewards” tab, use drop down to “Statement.” Click “View by Year,” then click “My Rewards”)
A4: INSTRUCTIONS: This tool is for illustrative purposes only. In order to calculate properly, please follow the steps in order. Your selections will determine the options available.
A7: 2019 PPO COVERAGE * | D7: * This calculation does not apply to the CDHP Plan. CDHP participants' incentive is deposited to their HSA account.
A8: STEP 1 | B8: Choose your coverage level: | C8: Employee + Spouse/Domestic Partner
A9: STEP 2 | B9: Choose your elected benefit option: | C9: Low Option PPO
A10: STEP 3 | B10: Choose your payroll frequency: | C10: Bi-Weekly
A12: INCENTIVE(S) EARNED
A13: STEP 4 | B13: Choose how many quarters YOU earned your incentive (by completing 3+ levels within the quarter) | C13: None
A14: STEP 5 | B14: Choose how many quarters your SPOUSE/DP earned your incentive (by completing 3+ levels within the quarter) | C14: None
A17: SPOUSAL SURCHARGE
A18: STEP 6 | B18: Does the Spousal Surcharge apply? | C18: No | D18: * The spousal surcharge is an additional premium that will apply if your spouse/DP has access to medical coverage through his/her employer and enrolls in a DSM medical plan.
C20: 2019 PREMIUM PER CONFIRM STATEMENT (WITHOUT EARNED CREDIT) | D20: 2019 PREMIUM PER 2019 PAY STUB (WITH EARNED CREDIT) | E20: * Your 2019 Premium will be a net amount on your paystub (medical premium - spousal surcharge if applicable - incentive credit = net amount shown)
A21: STEP 7 | B21: =VLOOKUP(C10,Data!$C$18:$D$20,2,0) -> Biweekly Employee Contribution | C21: =IF(C18="No",VLOOKUP(CONCATENATE(C8,C9,C10),Data!$C$23:$D$46,2,0),VLOOKUP(CONCATENATE(C8,C9,C10),Data!$C$23:$D$46,2,0)+VLOOKUP(C10,Data!$C$18:$F$20,4,0)) -> 134.38 | D21: =C21-(IF(LEFT(C13,1)="N",0,LEFT(C13,1))+IF(LEFT(C14,1)="N",0,LEFT(C14,1)))*VLOOKUP(B21,Data!$D$18:$E$20,2,0) -> 134.38
A23: DEADLINE: You and your spouse/domestic partner (DP) have until December 31, 2018 to complete your incentive requirements. If you complete your requirements prior to December 10, 2018, your incentive will be initiated with your first 2019 payroll. If you complete your requirements after December 10, your incentive will be delayed to the second payroll of 2019.
A25: QUESTIONS: For questions about the wellness program and incentive, visit the website at www.BrighterLiving.DSM.com or contact Virgin Pulse at 888-671-9395 and via email at support@virginpulse.com. If you have questions about your benefits, call the DSM Benefits Center at 1-888-353-9740 Mon-Fri from 9 a.m. to 7 p.m. ET & Sat 8 a.m. to 5 p.m.; or email questions to the DSM Benefits Center at DSMbenefitscenter@adp.com. Please allow 24-48 hours for an email response.
A27: DISCLAIMER: This calculator is a tool intended to assist you with determining your net medical premium after incentive is earned and applied . Virgin Pulse is responsible to determine the final earned incentive amount. In the event of any conflict between this tool and the Virgin Pulse wellness program results, the terms of the wellness program will control.
C45: =VLOOKUP(C8,Data!$C$4:$D$7,2,0) -> empspouse

Sheet Data (hidden)
D1: range | E1: emp | F1: empspouse | G1: empchild | H1: family
E2: Employee only | F2: Employee + Spouse/Domestic Partner | G2: Employee + Child(ren) | H2: Family
C3: Data - do not delete | E3: None | F3: None | G3: None | H3: None
B4: 1 | C4: Employee only | D4: emp | E4: None | F4: 1 Quarter | G4: None | H4: 1 Quarter
B5: 2 | C5: Employee + Spouse/Domestic Partner | D5: empspouse | E5: None | F5: 2 Quarters | G5: None | H5: 2 Quarters
B6: 3 | C6: Employee + Child(ren) | D6: empchild | E6: None | F6: 3 Quarters | G6: None | H6: 3 Quarters
B7: 4 | C7: Family | D7: family | E7: None | F7: 4 Quarters | G7: None | H7: 4 Quarters
C9: High Option PPO
C10: Low Option PPO
B12: 0 | C12: None | D12: 0
B13: 1 | C13: 1 Quarter | D13: 1
B14: 2 | C14: 2 Quarters | D14: 2
B15: 3 | C15: 3 Quarters | D15: 3
B16: 4 | C16: 4 Quarters | D16: 4
F17: Spousal Surcharge | G17: 1200
C18: Weekly | D18: Weekly Employee Contribution | E18: =D67 -> 2.884615385 | F18: =G17/52 -> 23.07692308
C19: Bi-Weekly | D19: Biweekly Employee Contribution | E19: =D66 -> 5.769230769 | F19: =G17/26 -> 46.15384615 | H19: Yes
C20: Monthly | D20: Monthly Employee Contribution | E20: =D65 -> 12.5 | F20: =G17/12 -> 100 | H20: No
C23: =CONCATENATE($C$4,$C$9,C18) -> Employee only High Option PPOWeekly | D23: =D56 -> 46.09
C24: =CONCATENATE($C$4,$C$9,C19) -> Employee only High Option PPOBi-Weekly | D24: =D55 -> 92.19
C25: Employee only High Option PPOMonthly | D25: =D54 -> 199.76
C26: =CONCATENATE($C$5,$C$9,C18) -> Employee + Spouse/Domestic PartnerHigh Option PPOWeekly | D26: =E56 -> 88.32
C27: =CONCATENATE($C$5,$C$9,C19) -> Employee + Spouse/Domestic PartnerHigh Option PPOBi-Weekly | D27: =E55 -> 176.64
C28: Employee + Spouse/Domestic PartnerHigh Option PPOMonthly | D28: =E54 -> 382.72
C29: =CONCATENATE($C$6,$C$9,C18) -> Employee + Child(ren)High Option PPOWeekly | D29: =F56 -> 73.74
C30: =CONCATENATE($C$6,$C$9,C19) -> Employee + Child(ren)High Option PPOBi-Weekly | D30: =F55 -> 147.49
C31: Employee + Child(ren)High Option PPOMonthly | D31: =F54 -> 319.57
C32: =CONCATENATE($C$7,$C$9,C18) -> FamilyHigh Option PPOWeekly | D32: =G56 -> 115.96
C33: =CONCATENATE($C$7,$C$9,C19) -> FamilyHigh Option PPOBi-Weekly | D33: =G55 -> 231.93
C34: FamilyHigh Option PPOMonthly | D34: =G54 -> 502.53
C35: =CONCATENATE($C$4,$C$10,C18) -> Employee only Low Option PPOWeekly | D35: =H56 -> 35.53
C36: =CONCATENATE($C$4,$C$10,C19) -> Employee only Low Option PPOBi-Weekly | D36: =H55 -> 71.06
C37: Employee only Low Option PPOMonthly | D37: =H54 -> 153.98
C38: =CONCATENATE($C$5,$C$10,C18) -> Employee + Spouse/Domestic PartnerLow Option PPOWeekly | D38: =I56 -> 67.19
C39: =CONCATENATE($C$5,$C$10,C19) -> Employee + Spouse/Domestic PartnerLow Option PPOBi-Weekly | D39: =I55 -> 134.38
C40: Employee + Spouse/Domestic PartnerLow Option PPOMonthly | D40: =I54 -> 291.16
C41: =CONCATENATE($C$6,$C$10,C18) -> Employee + Child(ren)Low Option PPOWeekly | D41: =J56 -> 54.72
C42: =CONCATENATE($C$6,$C$10,C19) -> Employee + Child(ren)Low Option PPOBi-Weekly | D42: =J55 -> 109.45
C43: Employee + Child(ren)Low Option PPOMonthly | D43: =J54 -> 237.16
C44: =CONCATENATE($C$7,$C$10,C18) -> FamilyLow Option PPOWeekly | D44: =K56 -> 86.38
C45: =CONCATENATE($C$7,$C$10,C19) -> FamilyLow Option PPOBi-Weekly | D45: =K55 -> 172.77
C46: FamilyLow Option PPOMonthly | D46: =K54 -> 374.35
D51: EE | E51: EE + SP | F51: EE + CH | G51: FAM | H51: EE | I51: EE + SP | J51: EE + CH | K51: FAM
D52: High | E52: High | F52: High | G52: High | H52: Low | I52: Low | J52: Low | K52: Low
C53: Medical - High Option (Non-Wellness) | D53: =CONCATENATE(C4,C9) -> Employee only High Option PPO | E53: =CONCATENATE(C5,C9) -> Employee + Spouse/Domestic PartnerHigh Option PPO | F53: =CONCATENATE(C6,C9) -> Employee + Child(ren)High Option PPO | G53: =CONCATENATE(C7,C9) -> FamilyHigh Option PPO | H53: =D58 -> Employee only Low Option PPO | I53: =E58 -> Employee + Spouse/Domestic PartnerLow Option PPO | J53: Employee + Child(ren)Low Option PPO | K53: FamilyLow Option PPO
C54: Monthly Employee Contribution | D54: 199.76 | E54: 382.72 | F54: 319.57 | G54: 502.53 | H54: =D59 -> 153.98 | I54: 291.16 | J54: 237.16 | K54: 374.35
C55: Biweekly Employee Contribution | D55: 92.19 | E55: 176.64 | F55: 147.49 | G55: 231.93 | H55: 71.06 | I55: 134.38 | J55: 109.45 | K55: 172.77
C56: Weekly Employee Contribution | D56: 46.09 | E56: 88.32 | F56: 73.74 | G56: 115.96 | H56: 35.53 | I56: 67.19 | J56: 54.72 | K56: 86.38
C58: Medical - Low Option (Non-Wellness) | D58: =CONCATENATE(C4,C10) -> Employee only Low Option PPO | E58: =CONCATENATE(C5,C10) -> Employee + Spouse/Domestic PartnerLow Option PPO | F58: =CONCATENATE(C6,C10) -> Employee + Child(ren)Low Option PPO | G58: =CONCATENATE(C7,C10) -> FamilyLow Option PPO
C59: Monthly Employee Contribution | D59: 153.98 | E59: 291.16 | F59: 237.16 | G59: 374.35
C60: Biweekly Employee Contribution | D60: 71.06 | E60: 134.38 | F60: 109.45 | G60: 172.77
C61: Weekly Employee Contribution | D61: 35.53 | E61: 67.19 | F61: 54.72 | G61: 86.38
D63: 1Q | E63: 2Q | F63: 3Q | G63: 4Q
C64: Incentive Discount earned | D64: 150 | E64: =D64*2 -> 300 | F64: =D64*3 -> 450 | G64: =D64*4 -> 600
C65: Monthly | D65: =D64/12 -> 12.5 | E65: =D65*2 -> 25 | F65: =D65*3 -> 37.5 | G65: =D65*4 -> 50
C66: Bi-Weekly | D66: =D64/26 -> 5.769230769 | E66: 11.53846154 | F66: 17.30769231 | G66: 23.07692308
C67: Weekly | D67: =D64/52 -> 2.884615385 | E67: 5.769230769 | F67: 8.653846154 | G67: 11.53846154
